fUST/lending_fUST_20250819
["ID","MTS","AMOUNT","RATE_DAILY","PERIOD"]
[380120012,1755552658494,-157.688766,0.000249,7]
[380120013,1755552658503,-34.42328287,0.000249,7]
[380120014,1755552658852,-480.0,0.00019178,2]
[380120015,1755552658861,-480.0,0.00019178,2]
[380120016,1755552658872,-480.0,0.00019452,2]
[380120017,1755552658882,-480.0,0.00019452,2]
[380120018,1755552658891,-480.0,0.00019726,2]
[380120019,1755552658901,-151.0,0.00020273,2]
[380120020,1755552658911,-123.26548313,0.000249,7]
[380120021,1755552658921,-192.105793,0.000249,7]
[380120022,1755552658931,-192.105793,0.000249,7]
[380120023,1755552658941,-151.0,0.000249,7]
[380120024,1755552658951,-151.0,0.000249,7]
[380120025,1755552658961,-151.0,0.000249,7]
[380120026,1755552658971,-151.0,0.000249,7]
[380120027,1755552658982,-168.554609,0.000249,7]
[380120028,1755552658992,-151.0,0.000249,7]
[380120029,1755552659002,-151.0,0.000249,7]
[380120030,1755552659012,-987.727299,0.000249,7]
[380120031,1755552659023,-987.727299,0.000249,7]
[380120032,1755552659032,-151.0,0.000249,7]
[380120033,1755552659042,-186.461676,0.000249,7]
[380120034,1755552659052,-151.0,0.000249,7]
[380120035,1755552659062,-186.461676,0.000249,7]
[380120036,1755552659072,-151.0,0.000249,7]
[380120037,1755552659082,-272.203154,0.000249,7]
[380120038,1755552659092,-272.203154,0.000249,7]
[380120039,1755552659102,-151.0,0.000249,7]
[380120040,1755552659113,-178.31849,0.000249,7]
[380120041,1755552659123,-178.31849,0.000249,7]
[380120042,1755552659133,-151.0,0.000249,7]
[380120043,1755552659143,-151.0,0.000249,7]
[380120044,1755552659153,-151.0,0.000249,7]
[380120045,1755552659163,-151.0,0.000249,7]
[380120046,1755552659173,-1489.02434628,0.000249,2]
[380120047,1755552659186,-458.45965161,0.000249,2]
[380120048,1755552767799,581.0,0.00028767,120]
[380120049,1755552822880,480.46,0.00028767,120]
[380120050,1755552998219,44768.9876828,0.00017993,2]
[380120051,1755552998245,55274.5455531,0.00017993,2]
[380120052,1755553122247,193.334262,0.00013699,2]
[380120062,1755553590131,-446.15369234,0.00018893,2]
[380120064,1755553621278,1500.0,0.0002876,120]
[380120065,1755553626103,-753.84630766,0.00018893,2]
[380120066,1755553626126,-300.0,0.00018894,2]
[380120067,1755553626147,-300.0,0.00018894,2]
[380120068,1755553626168,-377.96216116,0.00018895,2]
[380120069,1755553626188,-989.62953118,0.00018899,2]
[380120070,1755553626881,188.118099,0.00027397,120]
[380120071,1755553653121,-287.7592482,0.00018895,2]
[380120082,1755553831828,-436.75627512,0.000188,2]
[380120084,1755553831840,-730.59898456,0.00018895,2]
[380120089,1755553831889,-278.23481159,0.00018895,2]
[380120091,1755553831898,-210.37046882,0.00018899,2]
[380120093,1755553831907,-300.0,0.00018899,2]
[380120095,1755553831917,-300.0,0.00018899,2]
[380120097,1755553831925,-569.0,0.00018899,2]
[380120099,1755553831935,-500.0,0.00018899,2]
[380120101,1755553831944,-17912.70714135,0.000189,2]
[380120103,1755553831955,-2283.51549225,0.000189,2]
[380120105,1755553831966,-2750.0,0.000189,2]
[380120107,1755553831976,-8925.62271199,0.000189,2]
[380120110,1755553831992,-41200.84228621,0.000189,2]
[380120165,1755553837676,-57564.65346197,0.000189,2]
[380120166,1755553837688,-14914.31447912,0.000189,2]
[380120167,1755553837699,-18234.84000477,0.000189,2]
[380120168,1755553837710,-866.20443428,0.000189,2]
[380120169,1755553837733,-1369.77412244,0.000189,2]
[380120170,1755553837744,-4634.70088665,0.000189,2]
[380120171,1755553837792,-5411.62616831,0.000189,2]
[380120172,1755553837802,-775.8445213,0.000189,2]
[380120173,1755553837813,-4097.80733666,0.000189,2]
[380120174,1755553837824,-1824.2842084,0.000189,2]
[380120183,1755553839684,-2454.96186153,0.000189,2]
[380120185,1755553839745,-654.4603919,0.000189,2]
[380120199,1755553839879,-1800.04298637,0.000189,2]
[380120225,1755553842873,-136018.03159013,0.000189,2]
[380120226,1755553842883,-524.14781968,0.000189,2]
[380120227,1755553842893,-436.75627508,0.00018938,2]
[380120228,1755553842903,-436.75627508,0.00019076,2]
[380120229,1755553842913,-500.0,0.00019173,2]
[380120230,1755553842923,-159.338,0.00019177,2]
[380120231,1755553842932,-480.0,0.00019178,2]
[380120232,1755553842941,-480.0,0.00019178,2]
[380120234,1755553842950,-431.40347062,0.00019178,2]
[380120235,1755553842959,-460.0,0.00019178,2]
[380120236,1755553842969,-480.0,0.00019178,2]
[380120237,1755553842979,-480.0,0.00019178,2]
[380120238,1755553842989,-481.23,0.00019178,2]
[380120239,1755553842999,-538.55565945,0.00019178,2]
[380120240,1755553843009,-480.0,0.00019178,2]
[380120241,1755553843019,-461.89239036,0.00019178,2]
[380120242,1755553843028,-480.0,0.00019178,2]
[380120243,1755553843037,-460.0,0.00019178,2]
[380120244,1755553843048,-480.0,0.00019178,2]
[380120245,1755553843057,-480.0,0.00019178,2]
[380120246,1755553843067,-480.0,0.00019178,2]
[380120247,1755553843076,-480.0,0.00019178,2]
[380120248,1755553843086,-480.0,0.00019178,2]
[380120249,1755553843096,-480.0,0.00019178,2]
[380120250,1755553843106,-480.0,0.00019178,2]
[380120251,1755553843116,-480.0,0.00019178,2]
[380120252,1755553843126,-480.0,0.00019178,2]
[380120253,1755553843136,-480.0,0.00019178,2]
[380120254,1755553843146,-480.0,0.00019178,2]
[380120255,1755553843155,-482.73088207,0.00019178,2]
[380120256,1755553843165,-480.0,0.00019178,2]
[380120257,1755553843175,-460.0,0.00019178,2]
[380120258,1755553843184,-480.0,0.00019178,2]
[380120259,1755553843193,-480.0,0.00019178,2]
[380120260,1755553843202,-480.0,0.00019178,2]
[380120261,1755553843211,-480.0,0.00019178,2]
[380120262,1755553843221,-491.7073144,0.00019178,2]
[380120263,1755553843230,-480.0,0.00019178,2]
[380120264,1755553843239,-480.0,0.00019178,2]
[380120265,1755553843249,-481.41690375,0.00019178,2]
[380120266,1755553843259,-480.0,0.00019178,2]
[380120267,1755553843268,-480.0,0.00019178,2]
[380120268,1755553843277,-480.0,0.00019178,2]
[380120269,1755553843287,-480.0,0.00019178,2]
[380120270,1755553843297,-538.9657213,0.00019178,2]
[380120271,1755553843306,-480.0,0.00019178,2]
[380120272,1755553843315,-271.14644676,0.00019178,2]
[380120273,1755553843325,-480.0,0.00019178,2]
[380120274,1755553843335,-480.0,0.00019178,2]
[380120275,1755553843344,-480.0,0.00019178,2]
[380120276,1755553843353,-480.0,0.00019178,2]
[380120277,1755553843362,-480.0,0.00019178,2]
[380120278,1755553843371,-480.0,0.00019178,2]
[380120279,1755553843379,-480.0,0.00019178,2]
[380120280,1755553843388,-480.0,0.00019178,2]
[380120281,1755553843398,-480.0,0.00019178,2]
[380120282,1755553843407,-480.0,0.00019178,2]
[380120283,1755553843416,-480.0,0.00019178,2]
[380120284,1755553843425,-480.0,0.00019178,2]
[380120285,1755553843435,-480.0,0.00019178,2]
[380120286,1755553843444,-378.41249998,0.00019178,2]
[380120287,1755553843453,-480.0,0.00019178,2]
[380120288,1755553843462,-480.0,0.00019178,2]
[380120289,1755553843471,-480.0,0.00019178,2]
[380120290,1755553843480,-480.0,0.00019178,2]
[380120291,1755553843490,-480.0,0.00019178,2]
[380120292,1755553843499,-202.64848412,0.00019178,2]
[380120293,1755553843509,-480.0,0.00019178,2]
[380120294,1755553843518,-480.0,0.00019178,2]
[380120295,1755553843527,-480.0,0.00019178,2]
[380120296,1755553843536,-480.0,0.00019178,2]
[380120297,1755553843545,-480.0,0.00019178,2]
[380120298,1755553843555,-480.0,0.00019178,2]
[380120299,1755553843564,-480.0,0.00019178,2]
[380120300,1755553843573,-480.0,0.00019178,2]
[380120301,1755553843582,-480.0,0.00019178,2]
[380120302,1755553843592,-480.0,0.00019178,2]
[380120303,1755553843601,-480.0,0.00019178,2]
[380120304,1755553843611,-480.0,0.00019178,2]
[380120305,1755553843620,-480.0,0.00019178,2]
[380120306,1755553843629,-480.0,0.00019178,2]
[380120307,1755553843638,-480.0,0.00019178,2]
[380120308,1755553843647,-1000.0,0.00019178,2]
[380120309,1755553843657,-460.7875942,0.00019178,2]
[380120310,1755553843666,-460.60923691,0.00019178,2]
[380120311,1755553843675,-480.0,0.00019178,2]
[380120312,1755553843684,-480.0,0.00019178,2]
[380120313,1755553843693,-480.0,0.00019178,2]
[380120314,1755553843702,-502.64956167,0.00019178,2]
[380120315,1755553843712,-460.0,0.00019178,2]
[380120316,1755553843721,-480.0,0.00019178,2]
[380120317,1755553843730,-480.0,0.00019178,2]
[380120318,1755553843739,-441.75929617,0.00019178,2]
[380120319,1755553843748,-480.0,0.00019178,2]
[380120320,1755553843758,-480.0,0.00019178,2]
[380120321,1755553843768,-480.0,0.00019178,2]
[380120322,1755553843777,-480.0,0.00019178,2]
[380120323,1755553843786,-480.0,0.00019178,2]
[380120324,1755553843795,-480.0,0.00019178,2]
[380120325,1755553843804,-480.0,0.00019178,2]
[380120326,1755553843813,-480.0,0.00019178,2]
[380120327,1755553843823,-460.95870535,0.00019178,2]
[380120328,1755553843832,-480.0,0.00019178,2]
[380120329,1755553843844,-480.0,0.00019178,2]
[380120330,1755553843853,-480.0,0.00019178,2]
[380120331,1755553843863,-480.0,0.00019178,2]
[380120332,1755553843872,-480.0,0.00019178,2]
[380120333,1755553843883,-422.79052649,0.00019178,2]
[380120334,1755553843893,-480.0,0.00019178,2]
[380120335,1755553843902,-480.0,0.00019178,2]
[380120336,1755553843911,-480.0,0.00019178,2]
[380120337,1755553843923,-550.68173824,0.00019178,2]
[380120338,1755553843934,-480.0,0.00019178,2]
[380120345,1755553844057,-480.0,0.00019178,2]
[380120347,1755553844067,-480.0,0.00019178,2]
[380120348,1755553844076,-480.0,0.00019178,2]
[380120349,1755553844084,-480.0,0.00019178,2]
[380120350,1755553844094,-480.0,0.00019178,2]
[380120351,1755553844103,-480.0,0.00019178,2]
[380120352,1755553844113,-460.78275101,0.00019178,2]
[380120354,1755553844122,-480.0,0.00019178,2]
[380120356,1755553844132,-480.0,0.00019178,2]
[380120358,1755553844141,-480.0,0.00019178,2]
[380120360,1755553844150,-463.02299111,0.00019178,2]
[380120362,1755553844159,-480.0,0.00019178,2]
[380120364,1755553844169,-480.0,0.00019178,2]
[380120366,1755553844179,-480.0,0.00019178,2]
[380120368,1755553844187,-480.0,0.00019178,2]
[380120370,1755553844197,-480.0,0.00019178,2]
[380120372,1755553844206,-480.0,0.00019178,2]
[380120374,1755553844215,-480.0,0.00019178,2]
[380120376,1755553844224,-480.0,0.00019178,2]
[380120378,1755553844234,-480.0,0.00019178,2]
[380120380,1755553844243,-480.0,0.00019178,2]
[380120382,1755553844252,-480.0,0.00019178,2]
[380120384,1755553844262,-629.51472392,0.00019178,2]
[380120386,1755553844271,-480.0,0.00019178,2]
[380120388,1755553844280,-480.0,0.00019178,2]
[380120390,1755553844289,-616.96506995,0.00019178,2]
[380120392,1755553844300,-480.0,0.00019178,2]
[380120394,1755553844309,-480.0,0.00019178,2]
[380120396,1755553844318,-480.0,0.00019178,2]
[380120399,1755553844337,-480.0,0.00019178,2]
[380120401,1755553844350,-480.0,0.00019178,2]
[380120403,1755553844361,-460.0,0.00019178,2]
[380120405,1755553844371,-480.0,0.00019178,2]
[380120407,1755553844381,-480.0,0.00019178,2]
[380120408,1755553844391,-480.0,0.00019178,2]
[380120409,1755553844401,-400.0,0.00019178,2]
[380120410,1755553844411,-480.0,0.00019178,2]
[380120411,1755553844423,-595.25524115,0.00019178,2]
[380120412,1755553844433,-480.0,0.00019178,2]
[380120413,1755553844443,-480.0,0.00019178,2]
[380120414,1755553844453,-480.0,0.00019178,2]
[380120415,1755553844462,-480.0,0.00019178,2]
[380120416,1755553844472,-480.0,0.00019178,2]
[380120417,1755553844483,-480.0,0.00019178,2]
[380120418,1755553844493,-480.0,0.00019178,2]
[380120419,1755553844504,-480.0,0.00019178,2]
[380120420,1755553844514,-595.79251764,0.00019178,2]
[380120421,1755553844524,-480.0,0.00019178,2]
[380120422,1755553844533,-598.66771451,0.00019178,2]
[380120423,1755553844543,-460.0,0.00019178,2]
[380120424,1755553844553,-480.0,0.00019178,2]
[380120425,1755553844562,-480.0,0.00019178,2]
[380120426,1755553844572,-480.0,0.00019178,2]
[380120427,1755553844582,-480.0,0.00019178,2]
[380120428,1755553844591,-606.63618261,0.00019178,2]
[380120429,1755553844602,-480.0,0.00019178,2]
[380120430,1755553844613,-480.0,0.00019178,2]
[380120431,1755553844622,-480.0,0.00019178,2]
[380120432,1755553844632,-480.0,0.00019178,2]
[380120433,1755553844642,-480.0,0.00019178,2]
[380120434,1755553844651,-480.0,0.00019178,2]
[380120435,1755553844662,-480.0,0.00019178,2]
[380120436,1755553844673,-579.50225932,0.00019178,2]
[380120437,1755553844682,-480.0,0.00019178,2]
[380120438,1755553844692,-480.0,0.00019178,2]
[380120439,1755553844702,-480.0,0.00019178,2]
[380120440,1755553844711,-480.0,0.00019178,2]
[380120441,1755553844723,-480.0,0.00019178,2]
[380120442,1755553844733,-460.0,0.00019178,2]
[380120443,1755553844742,-480.0,0.00019178,2]
[380120444,1755553844752,-480.0,0.00019178,2]
[380120445,1755553844762,-480.0,0.00019178,2]
[380120446,1755553844771,-75.50523849,0.00019178,2]
[380120447,1755553844792,-404.49476151,0.00019178,2]
[380120448,1755553844803,-480.0,0.00019178,2]
[380120449,1755553844812,-246.15729093,0.00019178,2]
[380120450,1755553844822,-480.0,0.00019178,2]
[380120451,1755553844832,-480.0,0.00019178,2]
[380120452,1755553844843,-480.0,0.00019178,2]
[380120453,1755553844853,-480.0,0.00019178,2]
[380120454,1755553844862,-480.0,0.00019178,2]
[380120455,1755553844871,-461.40503044,0.00019178,2]
[380120456,1755553844882,-411.99216029,0.00019178,2]
[380120457,1755553844892,-460.0,0.00019178,2]
[380120458,1755553844901,-480.0,0.00019178,2]
[380120459,1755553844911,-461.71062971,0.00019178,2]
[380120460,1755553844921,-480.0,0.00019178,2]
[380120461,1755553844930,-480.0,0.00019178,2]
[380120462,1755553844940,-480.0,0.00019178,2]
[380120463,1755553844949,-480.0,0.00019178,2]
[380120464,1755553844959,-480.0,0.00019178,2]
[380120465,1755553844969,-500.0,0.00019178,2]
[380120466,1755553844979,-500.0,0.00019178,2]
[380120467,1755553844989,-480.0,0.00019178,2]
[380120468,1755553844999,-500.0,0.00019178,2]
[380120469,1755553845009,-500.0,0.00019178,2]
[380120470,1755553845018,-480.0,0.00019178,2]
[380120471,1755553845028,-500.0,0.00019178,2]
[380120472,1755553845037,-500.0,0.00019178,2]
[380120473,1755553845047,-480.0,0.00019178,2]
[380120474,1755553845057,-500.0,0.00019178,2]
[380120475,1755553845067,-500.0,0.00019178,2]
[380120476,1755553845076,-477.41751945,0.00019178,2]
[380120477,1755553845090,-22.58248055,0.00019178,2]
[380120478,1755553845100,-330.16,0.00019178,2]
[380120479,1755553845109,-116.19951945,0.00019178,2]
[380120480,1755553845133,-363.80048055,0.00019178,2]
[380120481,1755553845142,-480.0,0.00019178,2]
[380120482,1755553845151,-480.0,0.00019178,2]
[380120483,1755553845161,-480.0,0.00019178,2]
[380120484,1755553845170,-461.05026872,0.00019178,2]
[380120485,1755553845180,-480.0,0.00019178,2]
[380120486,1755553845189,-39.06400246,0.00019178,2]
[380120487,1755553845717,-440.93599754,0.00019178,2]
[380120488,1755553845726,-481.90805268,0.00019178,2]
[380120489,1755553845736,-480.0,0.00019178,2]
[380120490,1755553845746,-480.0,0.00019178,2]
[380120491,1755553845755,-480.0,0.00019178,2]
[380120492,1755553845766,-480.0,0.00019178,2]
[380120493,1755553845776,-480.0,0.00019178,2]
[380120494,1755553845785,-480.0,0.00019178,2]
[380120495,1755553845795,-480.0,0.00019178,2]
[380120496,1755553845804,-480.0,0.00019178,2]
[380120497,1755553845813,-480.0,0.00019178,2]
[380120498,1755553845823,-480.0,0.00019178,2]
[380120499,1755553845835,-480.69358738,0.00019178,2]
[380120500,1755553845846,-267.4887869,0.00019178,2]
[380120506,1755553949694,1000.0,0.00028767,120]
[380120509,1755553993624,351.0,0.00028767,120]
[380120510,1755554306955,201.927375,0.00013699,2]
[380120512,1755554637745,188.118099,0.00027397,120]
[380120513,1755554735094,-256.0,0.00018619,2]
[380120514,1755554735115,-26.63419851,0.00018699,2]
[380120515,1755554827357,300.0,0.00028,120]
[380120516,1755554841333,282.63419851,0.00018523,2]
[380120517,1755554848097,-124.12458743,0.00018699,2]
[380120518,1755554848265,-300.0,0.00018699,2]
[380120519,1755554848289,-864.3953629,0.000187,2]
[380120520,1755554848313,-89.19130578,0.0001879,3]
[380120521,1755554850416,-272.1438,0.0001879,3]
[380120570,1755555035464,-300.0,0.00018699,2]
[380120571,1755555035475,-150.78889254,0.000187,2]
[380120572,1755555035484,-576.26357526,0.000187,2]
[380120573,1755555035494,-500.0,0.00018773,2]
[380120574,1755555035504,-501.07757065,0.00018773,2]
[380120575,1755555035513,-500.0,0.00018773,2]
[380120576,1755555035523,-500.0,0.00018773,2]
[380120577,1755555035532,-500.0,0.00018773,2]
[380120578,1755555035542,-375.18489422,0.0001879,3]
[380120579,1755555035552,-1200.0,0.00018798,2]
[380120580,1755555035561,-502.99653309,0.00018799,2]
[380120581,1755555035573,-500.0,0.00018799,2]
[380120582,1755555035584,-500.0,0.00018799,2]
[380120584,1755555035593,-79.44876258,0.00018799,2]
[380120600,1755555038105,-420.55123742,0.00018799,2]
[380120601,1755555038115,-500.0,0.00018799,2]
[380120602,1755555038125,-500.0,0.00018799,2]
[380120603,1755555038134,-500.0,0.00018799,2]
[380120604,1755555038144,-500.0,0.00018799,2]
[380120605,1755555038153,-169.08658882,0.00018799,2]
[380120606,1755555038163,-500.0,0.00018799,2]
[380120607,1755555038172,-326.92352339,0.00018799,2]
[380120608,1755555038182,-500.0,0.00018799,2]
[380120609,1755555038191,-500.0,0.00018799,2]
[380120610,1755555038201,-500.0,0.00018799,2]
[380120611,1755555038211,-500.0,0.00018799,2]
[380120612,1755555038220,-379.94065592,0.00018799,2]
[380120613,1755555038229,-304.87841899,0.00018799,2]
[380120614,1755555038238,-270.18419753,0.00018799,2]
[380120616,1755555038247,-360971.47484527,0.000188,2]
[380120617,1755555038257,-405.16012498,0.000188,2]
[380120618,1755555038266,-405.16012496,0.0001887,2]
[380120620,1755555038276,-405.16012496,0.00018939,2]
[380120621,1755555038285,-405.16012496,0.00019009,2]
[380120623,1755555038294,-405.16012496,0.00019078,2]
[380120624,1755555038303,-1000.0,0.00019078,2]
[380120625,1755555038312,-468.73082083,0.00019173,2]
[380120626,1755555038321,-500.0,0.00019173,2]
[380120627,1755555038331,-598.25678293,0.00019178,2]
[380120628,1755555038341,-421.25850553,0.00019178,2]
[380120629,1755555038355,-208.39347265,0.00019178,2]
[380120630,1755555038364,-480.0,0.00019178,2]
[380120631,1755555038373,-480.0,0.00019178,2]
[380120632,1755555038382,-365.84427878,0.00019178,2]
[380120633,1755555038392,-480.0,0.00019178,2]
[380120634,1755555038402,-266.30312245,0.00019178,2]
[380120635,1755555038411,-480.0,0.00019178,2]
[380120636,1755555038421,-480.0,0.00019178,2]
[380120637,1755555038431,-480.0,0.00019178,2]
[380120638,1755555038440,-480.0,0.00019178,2]
[380120639,1755555038450,-524.79674422,0.00019178,2]
[380120640,1755555038460,-441.11900143,0.00019178,2]
[380120641,1755555038470,-480.0,0.00019178,2]
[380120642,1755555038479,-480.0,0.00019178,2]
[380120643,1755555038488,-376.24367862,0.00019178,2]
[380120644,1755555038497,-435.66289868,0.00019178,2]
[380120645,1755555038507,-480.0,0.00019178,2]
[380120646,1755555038516,-480.0,0.00019178,2]
[380120647,1755555038526,-480.0,0.00019178,2]
[380120648,1755555038535,-460.0,0.00019178,2]
[380120649,1755555038547,-271.26435825,0.00019178,2]
[380120650,1755555038559,-480.0,0.00019178,2]
[380120651,1755555038569,-460.0,0.00019178,2]
[380120652,1755555038578,-480.0,0.00019178,2]
[380120653,1755555038588,-480.0,0.00019178,2]
[380120654,1755555038597,-460.0,0.00019178,2]
[380120655,1755555038607,-480.0,0.00019178,2]
[380120656,1755555038616,-480.0,0.00019178,2]
[380120657,1755555038625,-480.0,0.00019178,2]
[380120658,1755555038634,-480.0,0.00019178,2]
[380120659,1755555038644,-480.0,0.00019178,2]
[380120660,1755555038653,-480.0,0.00019178,2]
[380120661,1755555038663,-480.0,0.00019178,2]
[380120662,1755555038672,-480.0,0.00019178,2]
[380120663,1755555038680,-500.0,0.00019178,2]
[380120664,1755555038689,-500.0,0.00019178,2]
[380120665,1755555038698,-500.0,0.00019178,2]
[380120666,1755555038707,-502.58818789,0.00019178,2]
[380120667,1755555038716,-299.10817248,0.00019178,2]
[380120668,1755555038725,-480.0,0.00019178,2]
[380120669,1755555038734,-480.0,0.00019178,2]
[380120670,1755555038744,-480.0,0.00019178,2]
[380120671,1755555038753,-480.0,0.00019178,2]
[380120672,1755555038762,-480.0,0.00019178,2]
[380120673,1755555038771,-534.16283547,0.00019178,2]
[380120674,1755555038781,-480.0,0.00019178,2]
[380120675,1755555038790,-162.09890531,0.00019178,2]
[380120676,1755555038799,-480.0,0.00019178,2]
[380120677,1755555038809,-480.0,0.00019178,2]
[380120678,1755555038818,-480.0,0.00019178,2]
[380120679,1755555038827,-480.0,0.00019178,2]
[380120680,1755555038837,-480.0,0.00019178,2]
[380120681,1755555038846,-323.44115158,0.00019178,2]
[380120682,1755555038855,-480.0,0.00019178,2]
[380120683,1755555038864,-480.0,0.00019178,2]
[380120684,1755555038874,-480.0,0.00019178,2]
[380120685,1755555038883,-548.50559093,0.00019178,2]
[380120686,1755555038892,-480.0,0.00019178,2]
[380120687,1755555038902,-480.0,0.00019178,2]
[380120688,1755555038911,-480.0,0.00019178,2]
[380120689,1755555038921,-257.43573212,0.00019178,2]
[380120690,1755555038931,-480.0,0.00019178,2]
[380120691,1755555038940,-480.0,0.00019178,2]
[380120692,1755555038950,-480.0,0.00019178,2]
[380120693,1755555038959,-480.0,0.00019178,2]
[380120694,1755555038968,-480.0,0.00019178,2]
[380120695,1755555038978,-480.0,0.00019178,2]
[380120696,1755555038987,-480.0,0.00019178,2]
[380120697,1755555038997,-480.0,0.00019178,2]
[380120698,1755555039006,-461.78500559,0.00019178,2]
[380120699,1755555039016,-480.0,0.00019178,2]
[380120700,1755555039025,-460.95789663,0.00019178,2]
[380120701,1755555039035,-500.0,0.00019178,2]
[380120702,1755555039044,-267.46142335,0.00019178,2]
[380120703,1755555039054,-480.0,0.00019178,2]
[380120704,1755555039063,-480.0,0.00019178,2]
[380120705,1755555039073,-480.0,0.00019178,2]
[380120706,1755555039082,-480.0,0.00019178,2]
[380120707,1755555039092,-480.0,0.00019178,2]
[380120708,1755555039102,-480.0,0.00019178,2]
[380120709,1755555039112,-460.30883699,0.00019178,2]
[380120710,1755555039121,-480.0,0.00019178,2]
[380120711,1755555039131,-480.0,0.00019178,2]
[380120712,1755555039140,-460.0,0.00019178,2]
[380120713,1755555039149,-480.0,0.00019178,2]
[380120714,1755555039158,-480.0,0.00019178,2]
[380120715,1755555039168,-480.0,0.00019178,2]
[380120716,1755555039177,-480.0,0.00019178,2]
[380120717,1755555039186,-480.0,0.00019178,2]
[380120718,1755555039195,-480.0,0.00019178,2]
[380120719,1755555039205,-480.0,0.00019178,2]
[380120720,1755555039313,-480.0,0.00019178,2]
[380120721,1755555039323,-462.00738125,0.00019178,2]
[380120722,1755555039333,-480.0,0.00019178,2]
[380120723,1755555039343,-482.30069432,0.00019178,2]
[380120724,1755555039356,-480.0,0.00019178,2]
[380120725,1755555039365,-480.0,0.00019178,2]
[380120726,1755555039375,-542.29578521,0.00019178,2]
[380120727,1755555039384,-480.0,0.00019178,2]
[380120728,1755555039395,-480.0,0.00019178,2]
[380120729,1755555039404,-460.33817196,0.00019178,2]
[380120730,1755555039414,-480.0,0.00019178,2]
[380120731,1755555039423,-500.0,0.00019178,2]
[380120732,1755555039433,-500.0,0.00019178,2]
[380120733,1755555039443,-500.0,0.00019178,2]
[380120734,1755555039452,-500.0,0.00019178,2]
[380120735,1755555039462,-500.0,0.00019178,2]
[380120736,1755555039471,-500.0,0.00019178,2]
[380120737,1755555039480,-500.0,0.00019178,2]
[380120738,1755555039490,-500.0,0.00019178,2]
[380120739,1755555039499,-500.0,0.00019178,2]
[380120740,1755555039508,-500.0,0.00019178,2]
[380120741,1755555039517,-576.35149402,0.00019178,2]
[380120742,1755555039527,-480.0,0.00019178,2]
[380120743,1755555039536,-480.0,0.00019178,2]
[380120744,1755555039544,-480.0,0.00019178,2]
[380120745,1755555039553,-460.0,0.00019178,2]
[380120746,1755555039563,-480.0,0.00019178,2]
[380120747,1755555039573,-480.0,0.00019178,2]
[380120748,1755555039582,-480.0,0.00019178,2]
[380120749,1755555039592,-480.0,0.00019178,2]
[380120751,1755555039601,-480.0,0.00019178,2]
[380120753,1755555039610,-480.0,0.00019178,2]
[380120755,1755555039619,-480.0,0.00019178,2]
[380120756,1755555039629,-480.0,0.00019178,2]
[380120757,1755555039638,-560.0,0.00019178,2]
[380120758,1755555039647,-480.0,0.00019178,2]
[380120759,1755555039656,-480.0,0.00019178,2]
[380120760,1755555039665,-480.0,0.00019178,2]
[380120761,1755555039675,-480.0,0.00019178,2]
[380120762,1755555039684,-480.0,0.00019178,2]